bitfinex/quotes_ETHUSD_20250903
["timestamp","ask_amount","ask_price","bid_price","bid_amount"]
[1756903840777,9.20620989,4356.9,4356.8,0.3201]
[1756903840971,6.911,4356.9,4356.8,0.3201]
[1756903841136,3.0,4356.9,4356.8,0.7874]
[1756903841344,9.20620989,4356.9,4356.8,1.1348]
[1756903841677,9.20620989,4356.9,4356.8,0.7874]
[1756903841678,9.20540989,4356.9,4356.8,0.7874]
[1756903841885,9.51480989,4356.9,4356.8,0.029]
[1756903842044,9.20540989,4356.9,4356.8,0.029]
[1756903842245,2.9992,4356.9,4356.8,0.7874]
[1756903842541,9.20540989,4356.9,4356.8,0.7874]
[1756903842869,6.9102,4356.9,4356.8,1.1348]
[1756903843080,3.1136,4356.9,4356.8,1.1348]
[1756903843280,9.31980989,4356.9,4356.8,0.7874]
[1756903843479,5.40880989,4356.9,4356.8,0.7874]
[1756903843640,9.31980989,4356.9,4356.8,0.7874]
[1756903843841,7.0246,4356.9,4356.8,0.7874]
[1756903844291,7.0246,4356.9,4356.8,1.1348]
[1756903844646,7.0246,4356.9,4356.8,0.7874]
[1756903845576,3.1136,4356.9,4356.8,0.7874]
[1756903845775,1.765,4357.2,4356.9,2.29520989]
[1756903845976,1.765,4357.2,4357.1,2.29510454]
[1756903846178,5.675,4357.2,4357.1,2.70060454]
[1756903846383,5.675,4357.2,4357.1,3.51530454]
[1756903849479,1.765,4357.2,4357.1,3.51530454]
[1756903849792,5.675,4357.2,4357.1,3.51530454]
[1756903849973,5.675,4357.2,4357.1,4.09925589]
[1756903850171,9.4548,4357.2,4356.8,0.029]
[1756903850377,3.0,4357.1,4356.8,0.029]
[1756903850696,3.91,4357.0,4356.8,0.029]
[1756903850898,1.765,4357.2,4357.0,0.2911]
[1756903851089,6.91,4357.1,4356.8,0.029]
[1756903851285,2.29520989,4356.9,4356.8,0.029]
[1756903851459,9.20420989,4356.9,4356.8,0.029]
[1756903851827,6.909,4356.9,4356.8,0.3201]
[1756903853979,9.20420989,4356.9,4356.8,0.3201]
[1756903854484,6.909,4356.9,4356.8,0.3201]
[1756903854975,6.909,4356.9,4356.8,0.029]
[1756903855374,9.20420989,4356.9,4356.8,0.029]
[1756903855592,9.51360989,4356.9,4356.8,0.029]
[1756903856094,7.2184,4356.9,4356.8,0.029]
[1756903856269,9.51360989,4356.9,4356.8,0.029]
[1756903856469,9.51460989,4356.9,4356.8,0.029]
[1756903856787,6.91,4356.9,4356.8,0.3201]
[1756903856993,3.001,4356.9,4356.8,0.3201]
[1756903857171,3.001,4356.9,4356.8,0.7874]
[1756903857486,6.91,4356.9,4356.8,0.029]
[1756903858090,6.91,4356.9,4356.8,0.3201]
[1756903858269,6.91,4356.9,4356.8,0.7874]
[1756903858465,6.91,4356.9,4356.8,1.09567125]
[1756903858666,6.91,4356.9,4356.8,0.62837125]
[1756903858915,6.91,4356.9,4356.8,0.3201]
[1756903859799,6.91,4356.9,4356.8,0.029]
[1756903860003,6.91,4356.9,4356.8,0.3251]
[1756903860376,3.001,4356.9,4356.8,2.62036257]
[1756903860707,0.001,4356.9,4356.8,3.44986257]
[1756903860872,3.909,4356.9,4356.8,4.13878251]
[1756903861199,3.909,4356.9,4356.8,3.79138251]
[1756903862207,4.2007,4356.9,4356.8,0.1434]
[1756903862412,3.909,4356.9,4356.8,3.21686257]
[1756903862777,3.909,4356.9,4356.8,3.56426257]
[1756903863181,0.001,4356.9,4356.8,3.56426257]
[1756903863375,3.909,4356.9,4356.8,4.15022454]
[1756903863583,3.909,4356.9,4356.8,3.80282454]
[1756903865380,3.909,4356.9,4356.8,4.15022454]
[1756903865800,0.001,4356.9,4356.8,4.94222454]
[1756903866005,0.0002,4356.9,4356.8,4.94222454]
[1756903866913,1.765,4358.6,4358.5,2.29436732]
[1756903867122,5.672,4358.6,4358.5,2.59046732]
[1756903867307,5.672,4358.6,4358.5,2.70486732]
[1756903867479,5.672,4358.6,4358.5,2.40876732]
[1756903867880,5.672,4358.6,4358.5,2.70486732]
[1756903868701,5.672,4358.6,4358.5,2.99545831]
[1756903870996,6.4062,4358.6,4358.0,2.29462828]
[1756903871197,6.4062,4358.6,4357.9,2.29465755]
[1756903871198,0.4425,4358.5,4357.9,2.29465755]
[1756903871528,4.4639,4358.4,4357.9,2.29465755]
[1756903871695,5.15375896,4358.4,4358.0,2.29459191]
[1756903871890,4.71125896,4358.4,4358.0,2.29459191]
[1756903872129,0.2917,4358.1,4357.8,0.1144]
[1756903872329,3.906,4358.0,4357.9,2.29468321]
[1756903872897,1.26145896,4358.4,4357.9,0.76648141]
[1756903872898,0.80425896,4358.4,4357.9,0.76648141]
[1756903873131,1.765,4358.6,4357.9,0.76648141]
[1756903873132,3.906,4358.3,4358.1,2.29457791]
[1756903873434,0.68976537,4358.7,4358.5,2.29436732]
[1756903873646,0.025,4358.8,4358.7,2.29426205]
[1756903873796,3.129,4358.8,4358.7,2.29426205]
[1756903874608,3.129,4358.8,4358.7,2.59036205]
[1756903875002,3.129,4358.8,4358.7,2.29426205]
[1756903875202,3.129,4358.8,4358.7,2.59036205]
[1756903875903,3.129,4358.8,4358.7,2.29426205]
[1756903876435,3.13,4358.8,4358.7,2.29426205]
[1756903878418,3.13,4358.8,4358.7,2.59036205]
[1756903878705,3.13,4358.8,4358.7,3.07883373]
[1756903879928,3.13,4358.8,4358.7,2.78273373]
[1756903880141,3.4217,4358.8,4358.7,2.29426205]
[1756903880312,3.13,4358.8,4358.7,2.29426205]
[1756903880630,4.3214,4358.8,4357.2,4.765]
[1756903880831,2.2065,4358.7,4358.4,2.29441894]
[1756903881031,2.6637,4358.7,4358.5,2.29436456]
[1756903881343,1.764,4358.7,4358.6,2.29431468]
[1756903881727,2.0557,4358.7,4358.6,2.29431468]
[1756903882453,5.669,4358.7,4358.6,2.29431468]
[1756903883106,5.668,4358.7,4358.6,3.04928794]
[1756903883518,1.764,4358.7,4358.6,3.16368794]
[1756903883709,5.668,4358.7,4358.6,3.99318794]
[1756903884167,5.668,4358.7,4358.6,3.64578794]
[1756903885561,5.668,4358.7,4358.6,2.86758794]
[1756903885713,5.668,4358.7,4358.6,3.16368794]
[1756903886865,1.764,4358.7,4358.6,4.43778794]
[1756903887048,5.668,4358.7,4358.6,4.78518794]
[1756903887739,5.668,4358.7,4358.6,4.43778794]
[1756903888049,5.0954,4358.7,4357.3,0.4821]
[1756903888255,1.764,4358.6,4358.3,0.1144]
[1756903888440,2.2212,4358.6,4358.3,0.1144]
[1756903888610,0.2917,4358.4,4358.3,2.40887261]
[1756903888816,4.6382,4358.4,4358.3,2.40887261]
[1756903889848,3.904,4358.4,4358.3,2.40887261]
[1756903890149,3.904,4358.4,4358.3,2.87921499]
[1756903890356,3.904,4358.4,4358.3,2.40887261]
[1756903890555,3.9032,4358.4,4358.3,2.40887261]
[1756903892028,1.764,4358.6,4358.5,2.29436732]
[1756903892228,5.667,4358.6,4358.5,2.59316732]
[1756903892855,5.667,4358.6,4358.5,2.70756732]
[1756903893154,5.667,4358.6,4358.5,2.95511131]
[1756903893754,5.667,4358.6,4358.5,2.40876732]
[1756903894764,5.667,4358.6,4358.5,2.70756732]
[1756903895059,1.764,4358.6,4358.5,3.16896732]
[1756903895370,5.667,4358.6,4358.5,3.16896732]
[1756903895528,5.667,4358.6,4358.5,4.30836732]
[1756903895856,0.001,4358.6,4358.5,4.62165131]
[1756903896623,0.3058,4358.6,4358.5,3.06945131]
[1756903896825,0.001,4358.6,4358.5,3.06945131]
[1756903897246,0.001,4358.6,4358.5,2.40876732]
[1756903897771,0.3058,4358.6,4358.5,2.40876732]
[1756903897982,0.7656,4358.6,4358.5,2.40876732]
[1756903898328,1.2225,4358.6,4358.5,0.1144]
[1756903898864,1.2225,4358.6,4358.3,0.004]
[1756903899069,3.51515,4358.5,4358.3,0.004]
[1756903899368,6.903,4358.4,4358.3,0.004]
[1756903899565,8.1245,4358.4,4358.3,0.004]
[1756903901768,10.41891997,4358.4,4358.3,0.004]
[1756903903086,3.3048,4358.4,4358.3,0.004]
[1756903903381,7.6666,4358.4,4358.3,0.1184]
[1756903903577,8.1235,4358.4,4358.3,0.1184]
[1756903904088,11.47574841,4358.4,4358.3,0.004]
[1756903904248,11.59014841,4358.4,4358.3,0.004]
[1756903911566,18.75014841,4358.4,4358.3,0.004]
[1756903913499,23.58494882,4358.4,4358.3,0.004]
[1756903914073,28.41974923,4358.4,4358.3,0.004]
[1756903914910,28.41894923,4358.4,4358.3,0.004]
[1756903915470,0.792,4358.2,4357.8,0.004]
[1756903915682,7.24388362,4357.9,4357.8,0.004]
[1756903915888,11.45068362,4357.9,4357.8,0.004]
[1756903916102,12.36738362,4357.9,4357.8,0.004]
[1756903916972,15.36738362,4357.9,4357.8,0.004]
[1756903917173,16.42521206,4357.9,4357.8,0.004]
[1756903923493,12.52321206,4357.9,4357.8,0.004]
[1756903923806,16.42621206,4357.9,4357.8,0.004]
[1756903924611,2.40908321,4357.9,4357.8,0.2919]
[1756903924926,11.14688362,4357.9,4357.8,0.7584]
[1756903925071,6.31208321,4357.9,4357.8,0.7584]
[1756903925271,14.14688362,4357.9,4357.8,0.7584]
[1756903925806,14.14688362,4357.9,4357.8,0.004]
[1756903925807,15.39638362,4357.9,4357.8,0.004]
[1756903926191,10.24388362,4357.9,4357.8,0.004]
[1756903926398,14.14588362,4357.9,4357.8,0.004]
[1756903927170,9.31108321,4357.9,4357.8,0.7584]
[1756903927371,3.1144,4357.9,4357.8,0.7584]
[1756903927775,0.69012716,4358.0,4357.8,0.7584]
[1756903928022,2.29442327,4358.4,4357.9,0.8139]
[1756903928221,0.68988593,4358.1,4358.0,0.4665]
[1756903928423,0.68988593,4358.1,4357.8,0.004]
[1756903928717,3.0,4358.0,4357.8,0.004]
[1756903928920,6.902,4357.9,4357.8,2.29873587]
[1756903929131,0.68988593,4358.1,4357.8,1.1058]
[1756903929274,3.902,4358.0,4357.9,0.8139]
[1756903929475,0.68979234,4358.7,4358.4,2.29438123]
[1756903929781,3.902,4358.5,4358.4,2.53525935]
[1756903930201,3.902,4358.5,4358.4,3.63705935]
[1756903930524,3.902,4358.5,4358.4,0.99527812]
[1756903931038,3.902,4358.5,4358.4,3.63708557]
[1756903931195,3.902,4358.5,4358.4,1.34267812]
[1756903931395,0.71577806,4358.8,4358.4,3.63709809]
[1756903931732,0.71577806,4358.8,4358.5,3.48341713]
[1756903931733,0.026,4358.8,4358.5,3.48341713]
[1756903932035,5.227,4358.6,4358.5,3.59781713]
[1756903932246,3.463,4358.6,4358.5,3.88571713]
[1756903932830,0.001,4358.6,4358.5,3.88571713]
[1756903933037,3.903,4358.6,4358.5,3.88571713]
[1756903933831,3.902,4358.6,4358.5,3.88571713]
[1756903934451,0.001,4358.6,4358.5,3.88571713]
[1756903936343,0.001,4358.6,4358.5,1.59134981]
[1756903936639,0.001,4358.6,4358.5,2.69666732]
[1756903936841,0.001,4358.6,4358.5,0.4023]
[1756903937143,0.001,4358.6,4358.4,0.24087812]
[1756903937144,0.7545,4358.6,4358.2,0.1144]
[1756903937325,5.666,4358.5,4358.2,0.1144]
[1756903937497,0.299,4358.3,4358.2,0.1144]
[1756903938043,0.4545,4358.4,4358.2,0.1144]
[1756903938274,5.666,4358.5,4358.2,0.1144]
[1756903938849,0.299,4358.3,4358.2,0.1144]
[1756903939052,0.299,4358.3,4357.9,0.1144]
[1756903939351,4.3537,4358.2,4357.9,0.1144]
[1756903941254,0.299,4358.0,4357.9,0.1144]
[1756903941444,0.299,4358.0,4357.8,0.004]
[1756903941640,7.14518321,4357.9,4357.8,0.004]
[1756903942022,11.13049979,4357.9,4357.8,0.004]
[1756903942222,11.42949979,4357.9,4357.8,0.004]
[1756903942952,31.62988088,4357.9,4357.8,0.004]
[1756903944728,31.94394706,4357.9,4357.8,0.004]
[1756903946065,25.04636202,4357.9,4357.8,0.004]
[1756903946634,2.29494652,4357.4,4357.3,0.004]
[1756903946837,7.95994652,4357.4,4357.3,0.004]
[1756903947140,12.20944652,4357.4,4357.3,0.004]
[1756903947559,12.32384652,4357.4,4357.3,0.004]
[1756903951431,12.6379127,4357.4,4357.3,0.004]
[1756903951631,13.62322928,4357.4,4357.3,0.004]
[1756903952075,13.3091631,4357.4,4357.3,0.004]
[1756903954855,13.3091631,4357.4,4357.3,0.104]
[1756903955368,13.3091631,4357.4,4356.8,0.029]
[1756903955369,5.29499919,4357.3,4356.8,0.029]
[1756903955681,2.40960989,4356.9,4356.8,0.029]
[1756903955877,9.59490989,4356.9,4356.8,0.029]
[1756903956174,10.47440989,4356.9,4356.8,0.029]
[1756903957441,16.38338968,4356.9,4356.8,0.029]
[1756903957761,15.21858968,4356.9,4356.8,0.029]
[1756903958134,15.50388968,4356.9,4356.8,0.029]
[1756903958335,16.48920626,4356.9,4356.8,0.029]
[1756903959168,16.91820626,4356.9,4356.8,0.029]
[1756903963154,17.36870626,4356.9,4356.8,0.029]
[1756903963560,17.68277244,4356.9,4356.8,0.029]
[1756903963880,17.68197244,4356.9,4356.8,0.029]
[1756903964974,17.36790626,4356.9,4356.8,0.029]
[1756903965587,11.45892647,4356.9,4356.8,0.029]
[1756903965875,17.36790626,4356.9,4356.8,0.029]
[1756903967583,16.48840626,4356.9,4356.8,0.029]
[1756903967881,16.91740626,4356.9,4356.8,0.029]
[1756903968581,17.36790626,4356.9,4356.8,0.029]
[1756903969650,13.46790626,4356.9,4356.8,0.029]
[1756903969851,17.36690626,4356.9,4356.8,0.029]
[1756903971284,16.48740626,4356.9,4356.8,0.029]
[1756903971781,16.20210626,4356.9,4356.8,0.029]
[1756903972001,16.48740626,4356.9,4356.8,0.029]
[1756903972376,17.36690626,4356.9,4356.8,0.029]
[1756903972576,17.9433874,4356.9,4356.8,0.029]
[1756903972885,17.36690626,4356.9,4356.8,0.029]
[1756903973250,17.36790626,4356.9,4356.8,0.029]
[1756903973651,16.91740626,4356.9,4356.8,0.029]
[1756903975686,17.36790626,4356.9,4356.8,0.029]
[1756903977294,16.91740626,4356.9,4356.8,0.029]
[1756903978184,17.36790626,4356.9,4356.8,0.029]
[1756903978757,16.91740626,4356.9,4356.8,0.029]
[1756903979704,24.07740626,4356.9,4356.8,0.029]
[1756903981291,24.82687122,4356.9,4356.8,0.029]
[1756903981491,2.29573681,4355.9,4355.8,0.025]
[1756903981692,16.9831166,4355.9,4355.8,0.025]
[1756903981865,16.9831166,4355.9,4355.8,0.3327]
[1756903982190,16.9831166,4355.9,4355.8,0.7933]
[1756903982356,16.9831166,4355.9,4355.8,0.3327]
[1756903982565,13.76218453,4355.9,4355.8,0.025]
[1756903982880,2.29626397,4354.9,4354.8,0.025]
[1756903983062,13.86924376,4354.9,4354.8,0.025]
[1756903983268,16.86924376,4354.9,4354.8,0.7933]
[1756903983996,8.664,4354.9,4354.8,1.1407]
[1756903984524,16.86924376,4354.9,4354.8,0.7933]
[1756903985881,5.664,4354.9,4354.8,1.1407]
[1756903986277,5.664,4354.9,4354.8,0.7933]
[1756903986792,5.664,4354.9,4354.8,1.1407]
[1756903987309,5.664,4354.9,4354.8,4.01036719]
[1756903988213,5.664,4354.9,4354.8,1.71405049]
[1756903988384,5.6632,4354.9,4354.8,4.01036719]
[1756903988917,5.6632,4354.9,4354.8,0.7933]
[1756903989207,5.6632,4354.9,4354.8,1.1407]
[1756903990206,5.6632,4354.9,4354.8,0.7933]
[1756903990376,14.57217979,4354.9,4354.8,0.3327]
[1756903990580,14.57217979,4354.9,4354.8,0.025]
[1756903990822,17.62204376,4354.9,4354.8,0.025]
[1756903992418,17.15494376,4354.9,4354.8,0.029]
[1756903992723,17.27014376,4354.9,4354.8,0.029]
[1756903994221,17.73724376,4354.9,4354.8,0.029]
[1756903995289,11.82826397,4354.9,4354.8,0.029]
[1756903995491,17.73724376,4354.9,4354.8,0.029]
[1756903996393,17.73724376,4354.9,4354.3,0.004]
[1756903996599,17.73724376,4354.9,4353.8,0.025]
[1756903996600,5.90897979,4354.4,4353.8,0.025]
[1756903996933,11.20577117,4353.9,4353.8,0.025]
[1756903997136,16.86977117,4353.9,4353.8,0.025]
[1756903997422,18.07817117,4353.9,4353.8,0.025]
[1756903998010,14.18017117,4353.9,4353.8,0.025]
[1756903998205,18.07817117,4353.9,4353.8,0.025]
[1756903998797,18.4015028,4353.9,4353.8,0.025]
[1756904000009,14.0487028,4353.9,4353.8,0.025]
[1756904000221,17.1931028,4353.9,4353.8,0.025]
[1756904000531,16.86977117,4353.9,4353.8,0.025]
[1756904000826,18.07817117,4353.9,4353.8,0.025]
[1756904001028,17.9467028,4353.9,4353.8,0.025]
[1756904003333,18.4015028,4353.9,4353.8,0.025]
[1756904003530,14.5035028,4353.9,4353.8,0.025]
[1756904003712,18.4015028,4353.9,4353.8,0.025]
[1756904004537,18.71556898,4353.9,4353.8,0.025]
[1756904005562,18.71556898,4353.9,4353.8,1e-08]
[1756904005707,18.71556898,4353.9,4352.8,0.025]
[1756904005708,2.29731902,4352.9,4352.8,0.025]
[1756904005917,16.87029881,4352.9,4352.8,0.025]
[1756904006251,17.62389881,4352.9,4352.8,0.025]
[1756904006447,18.19509399,4352.9,4352.8,0.025]
[1756904006751,17.73909881,4352.9,4352.8,0.025]
[1756904007114,13.37399881,4352.9,4352.8,0.025]
[1756904007318,16.98549881,4352.9,4352.8,0.025]
[1756904008159,16.98549881,4352.9,4351.4,0.4606]
[1756904008160,2.29749245,4352.6,4351.4,0.4606]
[1756904008446,13.07536264,4352.9,4351.4,0.4606]
[1756904008447,3.0,4352.1,4351.4,0.4606]
[1756904008753,5.29784691,4351.9,4351.4,0.4606]
[1756904008933,9.19584691,4351.9,4351.4,0.4606]
[1756904010249,8.90897979,4351.9,4351.8,0.7777]
[1756904010452,11.2068267,4351.9,4351.8,0.7777]
[1756904010646,15.1048267,4351.9,4351.8,0.7777]
[1756904011051,12.80697979,4351.9,4351.8,0.7777]
[1756904011250,12.80697979,4351.9,4351.8,1.1251]
[1756904011251,3.0,4351.9,4351.8,1.1251]
[1756904011453,6.898,4351.9,4351.8,1.1251]
[1756904011669,3.0,4351.9,4351.8,1.46740968]
[1756904011823,2.45795687,4352.0,4351.8,1.47140968]
[1756904012022,3.898,4351.9,4351.8,1.1291]
[1756904012426,3.898,4351.9,4351.8,3.42699971]
[1756904012620,1.767,4352.0,4351.8,3.42699971]
[1756904012953,1.767,4352.0,4351.9,3.12234691]
[1756904012954,2.45700253,4352.0,4351.9,3.12234691]
[1756904013146,5.6652,4352.0,4351.9,3.12234691]
[1756904013340,5.6652,4352.0,4351.9,3.99543669]
[1756904013545,1.7662,4352.0,4351.9,3.99543669]
[1756904013727,5.6652,4352.0,4351.9,3.99543669]
[1756904014754,5.6652,4352.0,4351.9,4.78743669]
[1756904015057,0.025,4352.8,4352.7,2.29742458]
[1756904015255,1.792,4352.8,4352.7,2.29742458]
[1756904015465,1.792,4352.8,4352.7,3.88201894]
[1756904015629,5.69,4352.8,4352.7,3.88201894]
[1756904016249,5.69,4352.8,4352.7,1.23719436]
[1756904016468,5.69,4352.8,4352.7,0.7777]
[1756904016756,5.69,4352.8,4352.7,3.07512458]
[1756904016958,5.69,4352.8,4352.7,3.42252458]
[1756904017455,5.69,4352.8,4352.7,3.07512458]
[1756904017830,5.69,4352.8,4352.7,3.42252458]
[1756904018029,5.69,4352.8,4352.7,4.10972991]
[1756904018229,5.69,4352.8,4352.7,3.76232991]
[1756904019231,1.792,4352.8,4352.7,3.76232991]
[1756904019433,5.69,4352.8,4352.7,4.10972991]
[1756904019644,5.69,4352.8,4352.7,3.76232991]
[1756904020253,5.69,4352.8,4352.7,3.19032458]
[1756904020562,5.69,4352.8,4352.7,2.71322458]
[1756904021561,5.69,4352.8,4352.7,3.19032458]
[1756904021929,5.69,4352.8,4352.7,0.4158]
[1756904022135,5.69,4352.8,4352.3,0.4771]
[1756904022351,3.1152,4352.5,4351.9,0.1152]
[1756904022553,4.84458517,4352.0,4351.5,0.1152]
[1756904022830,8.665,4351.9,4351.5,0.1152]
[1756904023253,8.665,4351.9,4351.5,2.41325375]
[1756904023629,8.665,4351.9,4351.8,0.3046]
[1756904023932,5.53545612,4352.0,4351.8,0.3046]
[1756904023933,0.69087095,4352.0,4351.9,2.29784691]
[1756904024154,3.898,4352.0,4351.9,3.07554691]
[1756904024464,4.84458517,4352.4,4352.3,2.29762945]
[1756904024765,8.74258517,4352.4,4352.3,2.29762945]
[1756904025131,9.50558517,4352.4,4351.8,0.27578025]
[1756904025377,4.84458517,4351.9,4351.8,0.1192]
[1756904025681,8.74258517,4351.9,4351.8,0.1192]
[1756904026140,8.74258517,4351.9,4351.8,0.4198]
[1756904026336,8.74258517,4351.9,4351.8,0.3046]
[1756904026665,8.74258517,4351.9,4351.8,2.60249971]
[1756904027074,1.767,4352.0,4351.9,2.29784691]
[1756904027289,5.665,4352.0,4351.8,2.60248657]
[1756904027977,0.763,4351.9,4351.8,0.004]
[1756904028161,5.60758517,4351.9,4351.8,0.004]
[1756904028735,6.06658517,4351.9,4351.8,0.004]
[1756904028935,9.06658517,4351.9,4351.8,0.004]
[1756904029972,8.13788517,4351.9,4351.8,0.004]
[1756904030172,6.898,4351.9,4351.8,2.60249971]
[1756904030473,6.898,4351.9,4351.8,0.3046]
[1756904030674,6.898,4351.9,4351.8,2.60249971]
[1756904030877,3.0,4351.9,4351.8,2.60249971]
[1756904031047,3.898,4351.9,4351.8,3.07959971]
[1756904031378,3.898,4351.9,4351.8,2.60249971]
[1756904032894,1.767,4352.0,4351.9,2.29784691]
[1756904033424,2.45780731,4352.0,4351.9,3.5771034]
[1756904033565,6.35580731,4352.0,4351.9,3.5771034]
[1756904033772,5.665,4352.0,4351.9,3.5771034]
[1756904034411,1.767,4352.0,4351.9,3.5771034]
[1756904034575,5.665,4352.0,4351.9,3.5771034]
[1756904035195,5.665,4352.0,4351.9,2.7994034]
[1756904035397,5.665,4352.0,4351.9,3.1000034]
[1756904035602,5.665,4352.0,4351.9,3.5771034]
[1756904036172,5.665,4352.0,4351.9,3.1000034]
[1756904036411,5.665,4352.0,4351.9,2.59844691]
[1756904037011,5.665,4352.0,4351.9,3.07554691]
[1756904037238,5.6642,4352.0,4351.9,3.07554691]
[1756904038097,1.7662,4352.0,4351.9,3.07554691]
[1756904038303,5.6642,4352.0,4351.9,3.07554691]
[1756904038610,5.6642,4352.0,4351.9,3.6595534]
[1756904039339,5.6642,4352.0,4351.9,2.8818534]
[1756904039504,5.9575,4352.0,4351.9,2.29784691]
[1756904039904,1.7662,4352.0,4351.9,3.03694691]
[1756904040104,4.5682,4352.0,4351.9,3.03694691]
[1756904040445,4.5682,4352.0,4351.9,3.5823534]
[1756904041043,0.025,4352.8,4352.7,2.29742458]
[1756904041044,1.792,4352.8,4352.7,2.29742458]
[1756904041447,5.689,4352.8,4352.7,2.69942458]
[1756904042546,5.689,4352.8,4352.7,3.49912458]
[1756904042768,5.689,4352.8,4352.7,2.69942458]
[1756904042906,11.77678517,4352.8,4352.7,0.1152]
[1756904043107,11.77678517,4352.8,4351.8,0.004]
[1756904043108,12.34568517,4352.8,4351.8,0.004]
[1756904043332,4.84458517,4352.5,4352.1,2.2977019]
[1756904043533,3.897,4352.4,4351.8,0.004]
[1756904043703,3.897,4352.4,4352.3,2.29763573]
[1756904043899,0.4599,4352.7,4352.6,2.29747736]
[1756904044100,4.6595,4352.7,4351.8,0.004]
[1756904044345,4.84458517,4352.6,4351.8,0.004]
[1756904044642,3.897,4352.5,4352.3,2.29763028]
[1756904044845,0.3026,4352.4,4352.3,2.29763028]
[1756904045052,0.7625,4352.4,4352.3,2.29763028]
[1756904045207,0.3026,4352.4,4351.9,2.29781997]
[1756904045408,4.8376,4352.3,4352.2,2.29768261]
[1756904045605,4.6595,4352.3,4352.2,2.29768261]
[1756904046847,4.1996,4352.3,4352.2,2.29768261]
[1756904047046,5.30448517,4352.6,4352.5,2.29753015]
[1756904047047,0.4599,4352.6,4352.5,2.29753015]
[1756904047350,4.6595,4352.6,4352.5,2.29753015]
[1756904048531,4.6605,4352.6,4352.5,2.29753015]
[1756904049743,4.6605,4352.6,4351.8,0.27943205]
[1756904050055,4.84458517,4352.5,4351.8,0.004]
[1756904050212,3.897,4352.4,4352.3,2.29763573]
[1756904050813,4.1996,4352.4,4352.3,2.29763573]
[1756904051330,4.1996,4352.4,4352.1,2.29770726]
[1756904051531,0.4599,4352.3,4352.2,2.29768852]
[1756904052048,0.7625,4352.3,4352.2,2.29768852]
[1756904052258,3.897,4352.4,4352.3,2.29763573]
[1756904052460,4.1996,4352.4,4352.3,2.29763573]
[1756904053045,4.6595,4352.4,4352.3,2.29763573]
[1756904054866,9.98478517,4352.4,4352.1,0.1152]
[1756904055161,4.47927852,4352.3,4351.8,2.4170524]
[1756904055367,0.3026,4351.9,4351.8,2.4170524]
[1756904055531,4.6585,4351.9,4351.8,0.1192]
[1756904056062,4.6585,4351.9,4351.8,2.41709971]
[1756904056963,3.896,4351.9,4351.8,2.41709971]
[1756904057936,4.1986,4351.9,4351.8,2.41709971]
[1756904058365,4.6585,4351.9,4351.8,2.41709971]
[1756904058567,4.6585,4351.9,4351.8,0.004]
[1756904058568,9.50308517,4351.9,4351.8,0.004]
[1756904058770,9.98378517,4351.9,4351.8,0.004]
[1756904060635,9.50308517,4351.9,4351.8,0.004]
[1756904060845,4.1986,4351.9,4351.8,0.004]
[1756904061244,4.6585,4351.9,4351.8,0.004]
[1756904061441,12.50308517,4351.9,4351.8,0.004]
[1756904061647,12.98378517,4351.9,4351.8,0.004]
[1756904061841,12.98298517,4351.9,4351.8,0.004]
[1756904062545,12.50228517,4351.9,4351.8,0.004]
[1756904062750,12.98298517,4351.9,4351.8,0.004]
[1756904063064,7.6577,4351.9,4351.8,0.004]
[1756904064138,8.1384,4351.9,4351.8,0.004]
[1756904064870,10.43624691,4351.9,4351.8,0.004]
[1756904065069,8.1384,4351.9,4351.8,0.004]
[1756904065260,6.8952,4351.9,4351.8,0.004]
[1756904065639,3.0,4351.9,4351.8,0.004]
[1756904065868,6.896,4351.9,4351.8,0.004]
[1756904066076,7.6585,4351.9,4351.8,0.004]
[1756904066568,3.7625,4351.9,4351.8,0.004]
[1756904066738,12.50308517,4351.9,4351.8,0.004]
[1756904068665,12.98378517,4351.9,4351.8,0.004]
[1756904068985,15.28163208,4351.9,4351.8,0.004]
[1756904073301,6.54104691,4351.9,4351.8,0.004]
[1756904073519,15.28163208,4351.9,4351.8,0.004]
[1756904076284,15.28063208,4351.9,4351.8,0.004]
[1756904077185,14.79993208,4351.9,4351.8,0.004]
[1756904077387,3.895,4351.9,4351.8,0.2901]
[1756904077588,6.895,4351.9,4351.8,0.2901]
[1756904077768,9.19284691,4351.9,4351.8,0.004]
[1756904078090,7.2035,4351.9,4351.8,0.004]
[1756904079378,3.3085,4351.9,4351.8,0.004]
[1756904079692,7.2035,4351.9,4351.8,0.004]
[1756904080183,3.7406,4351.9,4351.8,0.004]
[1756904080502,6.895,4351.9,4351.8,0.004]
[1756904081859,7.2035,4351.9,4351.8,0.004]
[1756904082088,3.0,4351.9,4351.8,0.2901]
[1756904082280,7.2035,4351.9,4351.8,0.004]
[1756904082475,7.6356,4351.9,4351.8,0.004]
[1756904082771,9.93344691,4351.9,4351.8,0.004]
[1756904082988,9.50134691,4351.9,4351.8,0.004]
[1756904083293,9.93344691,4351.9,4351.8,0.004]
[1756904084482,7.6356,4351.9,4351.8,0.004]
[1756904085369,10.40564691,4351.9,4351.8,0.004]
[1756904085894,16.32629019,4351.9,4351.8,0.004]
[1756904086265,16.32549019,4351.9,4351.8,0.004]
[1756904087793,16.65565909,4351.9,4351.8,0.004]
[1756904096809,16.65565909,4351.9,4351.8,0.2901]
[1756904096810,0.001,4351.9,4351.8,0.2901]
[1756904097007,4.0102,4351.9,4351.8,1.1045]
[1756904097206,7.0102,4351.9,4351.8,0.7571]
[1756904098624,3.1162,4351.9,4351.8,1.09735546]